bitfinex/quotes_BTCUSD_20240611
["timestamp","ask_amount","ask_price","bid_price","bid_amount"]
[1718120396549,0.16431993,66660.0,66657.0,0.1]
[1718120397231,0.02,66656.0,66651.0,0.1]
[1718120397448,0.14431993,66655.0,66652.0,0.1]
[1718120399224,0.14431993,66655.0,66653.0,0.1]
[1718120399914,0.02,66665.0,66653.0,0.1]
[1718120400140,0.14431993,66664.0,66653.0,0.1]
[1718120401028,0.16431993,66664.0,66653.0,0.1]
[1718120401240,0.02,66660.0,66653.0,0.1]
[1718120401455,0.14431993,66659.0,66651.0,0.1]
[1718120401664,0.14431993,66659.0,66653.0,0.1]
[1718120402531,0.16431993,66659.0,66653.0,0.1]
[1718120402948,0.02,66650.0,66647.0,0.1]
[1718120403190,0.16431993,66649.0,66647.0,0.1]
[1718120403637,0.02,66647.0,66646.0,0.1]
[1718120403858,0.01,66643.0,66642.0,0.03550932]
[1718120404075,0.14431993,66643.0,66642.0,0.03550932]
[1718120406050,0.16431993,66643.0,66642.0,0.03550932]
[1718120406484,0.31437293,66643.0,66642.0,0.03550932]
[1718120406702,1.00637293,66643.0,66642.0,0.03550932]
[1718120407350,0.80637293,66643.0,66642.0,0.03550932]
[1718120407562,1.02927293,66643.0,66642.0,0.03550932]
[1718120407767,0.80637293,66643.0,66642.0,0.03550932]
[1718120409939,1.00637293,66643.0,66642.0,0.03550932]
[1718120410139,1.00637293,66643.0,66630.0,0.1]
[1718120410140,0.02,66634.0,66630.0,0.1]
[1718120410350,0.14431993,66633.0,66630.0,0.1]
[1718120411040,0.492,66643.0,66630.0,0.1]
[1718120411041,0.492,66643.0,66632.0,0.07215996]
[1718120411252,0.14431993,66642.0,66634.0,0.1]
[1718120411467,0.4718,66649.0,66639.0,0.1]
[1718120411684,0.1622,66660.0,66647.0,0.1]
[1718120411902,0.14431993,66659.0,66647.0,0.1]
[1718120412148,140.0,66650.0,66647.0,0.1]
[1718120412363,0.14431993,66649.0,66645.0,0.1]
[1718120412602,0.02,66646.0,66643.0,0.1]
[1718120412806,0.14431993,66645.0,66641.0,0.1]
[1718120414524,0.07215996,66642.0,66641.0,0.1]
[1718120414732,0.21647989,66642.0,66641.0,0.1]
[1718120415591,0.14431993,66642.0,66641.0,0.1]
[1718120415804,0.14431993,66642.0,66640.0,0.1]
[1718120416042,0.02,66638.0,66633.0,0.03551412]
[1718120416281,0.09215996,66634.0,66633.0,0.03551412]
[1718120416493,0.61695793,66634.0,66633.0,0.03551412]
[1718120416712,0.60945289,66634.0,66633.0,0.03551412]
[1718120416927,0.16431993,66634.0,66633.0,0.03551412]
[1718120418208,0.31439293,66634.0,66633.0,0.03551412]
[1718120419482,0.51439293,66634.0,66633.0,0.03551412]
[1718120419712,0.31439293,66634.0,66633.0,0.03551412]
[1718120421354,0.51439293,66634.0,66633.0,0.03551412]
[1718120422217,0.51439293,66634.0,66617.0,0.1]
[1718120422218,0.02,66629.0,66617.0,0.1]
[1718120422703,0.14431993,66628.0,66619.0,0.1]
[1718120422963,0.14431993,66639.0,66629.0,0.1]
[1718120423184,0.4718,66649.0,66634.0,0.150072]
[1718120423393,0.14431993,66648.0,66634.0,0.150072]
[1718120423623,0.02,66646.0,66634.0,0.150072]
[1718120423836,0.14431993,66645.0,66634.0,0.150072]
[1718120424086,0.150021,66657.0,66641.0,0.1]
[1718120424295,0.150021,66657.0,66634.0,0.07215996]
[1718120424296,0.02,66663.0,66634.0,0.07215996]
[1718120424298,0.2229,66666.0,66634.0,0.07215996]
[1718120424299,0.14431993,66656.0,66643.0,0.250052]
[1718120424509,0.14431993,66656.0,66645.0,0.150047]
[1718120424725,0.16431993,66656.0,66646.0,0.023]
[1718120425159,0.16431993,66656.0,66643.0,0.1]
[1718120425160,0.09215996,66654.0,66643.0,0.1]
[1718120425369,0.14431993,66653.0,66643.0,0.1]
[1718120425578,0.14431993,66653.0,66644.0,0.023]
[1718120426663,0.14431993,66653.0,66645.0,0.02434172]
[1718120427101,0.16431993,66653.0,66645.0,0.02434172]
[1718120427326,0.02,66648.0,66645.0,0.02434172]
[1718120427565,0.16431993,66647.0,66645.0,0.02434172]
[1718120427827,0.170046,66646.0,66645.0,0.02434172]
[1718120428032,0.170046,66646.0,66636.0,0.02434501]
[1718120428033,0.02,66643.0,66636.0,0.02434501]
[1718120428242,0.14431993,66642.0,66636.0,0.02434501]
[1718120428450,0.01981947,66638.0,66636.0,0.02434501]
[1718120428657,0.1641394,66637.0,66636.0,0.02434501]
[1718120430173,0.14431993,66637.0,66636.0,0.02434501]
[1718120430400,0.1641394,66637.0,66636.0,0.02434501]
[1718120431240,0.5142054,66637.0,66636.0,0.02434501]
[1718120431439,1.3137054,66637.0,66636.0,0.02434501]
[1718120432102,1.3137054,66637.0,66610.0,0.00854]
[1718120432103,0.01,66618.0,66610.0,0.00854]
[1718120432315,0.01981947,66611.0,66610.0,0.00854]
[1718120432522,0.14431993,66611.0,66610.0,0.00854]
[1718120433967,0.1686,66628.0,66615.0,0.00018053]
[1718120434195,0.14431993,66627.0,66619.0,0.00018053]
[1718120434402,0.14431993,66627.0,66618.0,0.00018053]
[1718120434615,0.14431993,66627.0,66618.0,0.02318053]
[1718120434832,0.14431993,66627.0,66618.0,0.023]
[1718120435059,0.01981947,66622.0,66618.0,0.023]
[1718120435263,0.14431993,66621.0,66615.0,0.023]
[1718120435470,0.07215996,66616.0,66615.0,0.023]
[1718120435689,0.07215996,66616.0,66612.0,0.1]
[1718120435690,0.15182587,66616.0,66612.0,0.1]
[1718120435902,0.07215996,66623.0,66610.0,0.00854]
[1718120435903,0.23629936,66615.0,66610.0,0.00854]
[1718120436156,0.150098,66623.0,66622.0,0.00018053]
[1718120436367,0.16988947,66636.0,66620.0,0.1]
[1718120436567,0.29439093,66635.0,66620.0,0.1]
[1718120436798,0.01981947,66631.0,66621.0,0.1452153]
[1718120437017,0.01981947,66628.0,66619.0,0.1]
[1718120437229,0.14431993,66627.0,66620.0,0.123]
[1718120437488,0.4932,66624.0,66613.0,0.1]
[1718120437721,0.01981947,66619.0,66614.0,0.14701471]
[1718120437961,0.14431993,66618.0,66610.0,0.10854]
[1718120438225,0.14431993,66618.0,66611.0,0.1]
[1718120438469,0.14431993,66618.0,66610.0,0.00854]
[1718120438470,0.1641394,66618.0,66610.0,0.00854]
[1718120438938,0.01981947,66615.0,66610.0,0.00854]
[1718120439147,0.15182715,66614.0,66610.0,0.00854]
[1718120439370,0.14431993,66614.0,66610.0,0.00854]
[1718120440011,0.01981947,66611.0,66610.0,0.00854]
[1718120440235,0.14431993,66611.0,66610.0,0.00854]
[1718120440885,0.3142644,66611.0,66610.0,0.00854]
[1718120441355,0.7972644,66611.0,66610.0,0.00854]
[1718120441992,0.77744493,66611.0,66610.0,0.00854]
[1718120442709,0.14431993,66611.0,66610.0,0.00854]
[1718120443626,0.01981947,66626.0,66613.0,0.00018053]
[1718120443839,0.14431993,66625.0,66611.0,0.02318053]
[1718120444062,0.1641394,66625.0,66611.0,0.02318053]
[1718120444275,0.01,66619.0,66610.0,0.00854]
[1718120444489,0.01981947,66616.0,66610.0,0.00854]
[1718120444697,0.01,66613.0,66610.0,0.00854]
[1718120444918,0.1641394,66612.0,66610.0,0.00854]
[1718120445115,0.14431993,66612.0,66610.0,0.00854]
[1718120447506,0.4703,66611.0,66610.0,0.00854]
[1718120447732,0.61461993,66611.0,66610.0,0.00854]
[1718120449111,0.6344394,66611.0,66610.0,0.00854]
[1718120450976,0.6344394,66611.0,66605.0,0.00854]
[1718120450977,0.150136,66606.0,66605.0,0.00854]
[1718120451201,0.58643536,66606.0,66605.0,0.00854]
[1718120451411,0.5142754,66606.0,66605.0,0.00854]
[1718120451878,0.7142754,66606.0,66605.0,0.00854]
[1718120452109,0.84878454,66606.0,66605.0,0.00854]
[1718120452543,1.02748454,66606.0,66605.0,0.00854]
[1718120452772,1.02748454,66606.0,66598.0,0.00057668]
[1718120452773,0.11981947,66599.0,66598.0,0.00057668]
[1718120452993,0.8045914,66599.0,66598.0,0.00057668]
[1718120453224,0.9045914,66599.0,66598.0,0.00057668]
[1718120453449,1.1045914,66599.0,66598.0,0.00057668]
[1718120453671,0.9045914,66599.0,66598.0,0.00057668]
[1718120453891,1.1045914,66599.0,66598.0,0.00057668]
[1718120454100,0.36998047,66595.0,66582.0,0.0080154]
[1718120454374,0.52277907,66599.0,66582.0,0.0080154]
[1718120454375,1.00339936,66583.0,66582.0,0.0080154]
[1718120454617,0.31981947,66582.0,66580.0,0.00854]
[1718120454834,0.5641394,66582.0,66580.0,0.00854]
[1718120455057,0.84311972,66582.0,66580.0,0.00854]
[1718120455302,0.77047147,66570.0,66569.0,0.00854]
[1718120455537,1.6356914,66570.0,66569.0,0.00854]
[1718120455781,1.6356914,66570.0,66554.0,0.00801877]
[1718120455782,0.27007047,66555.0,66554.0,0.00801877]
[1718120456048,0.17009547,66544.0,66538.0,0.02997]
[1718120456274,0.17009547,66544.0,66532.0,0.60823022]
[1718120456275,0.87099547,66544.0,66532.0,0.60823022]
[1718120456510,0.21981947,66533.0,66532.0,0.60823022]
[1718120456767,0.1,66509.0,66508.0,0.01336366]
[1718120456987,0.01981947,66493.0,66485.0,0.062135]
[1718120457205,0.150407,66486.0,66478.0,0.32410452]
[1718120457452,0.2885,66483.0,66481.0,0.15599355]
[1718120457673,1.08185343,66485.0,66471.0,0.02112882]
[1718120457674,0.16024147,66480.0,66471.0,0.02112882]
[1718120457894,0.16024147,66480.0,66454.0,0.00135901]
[1718120457895,0.1557,66460.0,66438.0,0.02963115]
[1718120458138,0.3144,66461.0,66438.0,0.02963115]
[1718120458139,0.35215996,66441.0,66440.0,0.07488028]
[1718120458377,0.35215996,66441.0,66433.0,0.85566809]
[1718120458378,0.8427,66434.0,66433.0,0.85566809]
[1718120458644,0.8427,66434.0,66421.0,0.00117045]
[1718120458645,0.28,66412.0,66411.0,0.58029524]
[1718120458879,5.20301903,66412.0,66411.0,0.34434236]
[1718120459136,0.1549,66411.0,66371.0,0.54744286]
[1718120459388,0.1549,66411.0,66358.0,0.00130682]
[1718120459389,0.28,66367.0,66361.0,0.400526]
[1718120459616,0.28,66367.0,66347.0,0.05786508]
[1718120459617,0.58324045,66351.0,66350.0,0.54625531]
[1718120459846,0.58324045,66351.0,66333.0,0.10149239]
[1718120459847,0.09762745,66344.0,66333.0,0.1]
[1718120460087,0.95562745,66344.0,66333.0,0.1]
[1718120460312,0.95562745,66344.0,66332.0,0.05688558]
[1718120460313,0.19273151,66341.0,66332.0,0.05688558]
[1718120460531,0.441729,66344.0,66332.0,0.03837797]
[1718120460532,0.44193151,66333.0,66332.0,0.03837797]
[1718120460761,0.52379275,66344.0,66332.0,0.05387875]
[1718120460994,0.52379275,66344.0,66303.0,0.2]
[1718120460995,0.339,66333.0,66331.0,0.81994664]
[1718120461237,0.0111078,66332.0,66331.0,0.81994664]
[1718120461462,0.0111078,66332.0,66331.0,0.74931889]
[1718120461463,0.7,66332.0,66331.0,0.74931889]
[1718120461692,0.150738,66341.0,66331.0,0.74431889]
[1718120462000,0.3323,66332.0,66331.0,0.95581128]
[1718120462200,0.0145,66351.0,66350.0,0.00149239]
[1718120462443,0.08,66334.0,66333.0,0.3131]
[1718120462664,0.03582668,66351.0,66333.0,0.22219801]
[1718120462907,0.5,66332.0,66331.0,0.49163998]
[1718120463134,0.5,66350.0,66331.0,0.29163998]
[1718120463355,0.678,66355.0,66331.0,0.29163998]
[1718120463817,0.01111177,66409.0,66331.0,0.29163998]
[1718120463818,0.0291835,66363.0,66362.0,0.1]
[1718120464056,0.32961605,66394.0,66355.0,0.07215996]
[1718120464057,0.0599328,66375.0,66355.0,0.07215996]
[1718120464309,0.1399328,66361.0,66360.0,0.3131]
[1718120464552,0.08,66369.0,66360.0,0.3131]
[1718120464823,0.43295979,66382.0,66365.0,0.3118]
[1718120465083,0.3074,66394.0,66361.0,0.07215996]
[1718120465325,0.1,66400.0,66376.0,0.2]
[1718120465585,0.08,66401.0,66369.0,0.07215996]
[1718120465854,0.43295979,66405.0,66369.0,0.07215996]
[1718120465855,0.15625009,66399.0,66369.0,0.07215996]
[1718120466068,0.3179,66385.0,66362.0,0.1]
[1718120466326,0.3179,66385.0,66357.0,0.1]
[1718120466327,1.5157,66384.0,66357.0,0.1]
[1718120466561,1.5157,66384.0,66344.0,0.03834897]
[1718120466562,0.1,66370.0,66344.0,0.03834897]
[1718120466789,0.12,66364.0,66326.0,0.001375]
[1718120467017,0.1,66345.0,66326.0,0.001375]
[1718120467252,0.3453,66356.0,66326.0,0.001375]
[1718120467253,0.1,66341.0,66326.0,0.001375]
[1718120467488,0.3385,66348.0,66326.0,0.001375]
[1718120467489,0.1,66338.0,66326.0,0.001375]
[1718120467708,0.1,66329.0,66313.0,0.069375]
[1718120467942,0.3385,66337.0,66293.0,0.00379934]
[1718120467943,0.168,66323.0,66293.0,0.00379934]
[1718120468162,0.02,66331.0,66293.0,0.00379934]
[1718120468163,0.0344,66331.0,66297.0,0.1]
[1718120468402,0.5,66361.0,66330.0,0.1]
[1718120468403,0.08,66332.0,66330.0,0.1]
[1718120468634,0.08,66332.0,66331.0,0.295]
[1718120468886,0.5,66361.0,66354.0,0.245706]
[1718120469075,0.23450921,66420.0,66354.0,0.245706]
[1718120469076,0.5,66400.0,66354.0,0.1097]
[1718120469308,0.5,66400.0,66349.0,0.5824]
[1718120469309,0.08,66422.0,66401.0,0.095]
[1718120469546,0.02222304,66423.0,66405.0,0.095]
[1718120469779,0.02,66436.0,66407.0,0.095]
[1718120469780,0.03222304,66424.0,66407.0,0.095]
[1718120470010,0.03222304,66424.0,66421.0,0.095]
[1718120470263,0.03222304,66424.0,66423.0,0.16715996]
[1718120470497,0.01,66424.0,66423.0,0.26331368]
[1718120470751,0.01,66424.0,66423.0,0.48631368]
[1718120471045,0.01,66424.0,66423.0,0.09115372]
[1718120471269,0.3065,66423.0,66388.0,0.43295979]
[1718120471518,0.17596993,66422.0,66389.0,0.14431993]
[1718120471736,0.07215996,66415.0,66385.0,0.07215996]
[1718120471958,0.07215996,66407.0,66375.0,0.2]
[1718120472185,0.2,66413.0,66386.0,0.07215996]
[1718120472423,0.43295979,66420.0,66387.0,0.07215996]
[1718120472652,0.43295979,66420.0,66396.0,0.07215996]
[1718120472878,0.01,66424.0,66388.0,0.14431993]
[1718120473094,0.2,66438.0,66402.0,0.150596]
[1718120473315,0.2,66432.0,66402.0,0.150596]
[1718120473547,0.43295979,66420.0,66403.0,0.14431993]
[1718120473764,0.41647989,66419.0,66389.0,0.150625]
[1718120473979,0.07215996,66404.0,66391.0,0.150622]
[1718120474208,0.41647989,66419.0,66393.0,0.150618]
[1718120474209,0.21647989,66419.0,66393.0,0.150618]
[1718120474444,0.43295979,66427.0,66394.0,0.123]
[1718120474685,0.43295979,66427.0,66414.0,0.15057]
[1718120474935,0.052223,66445.0,66415.0,0.15937693]
[1718120474936,0.032223,66445.0,66415.0,0.15937693]
[1718120475154,0.032223,66445.0,66422.0,0.14431993]
[1718120475396,0.43295979,66447.0,66425.0,0.150544]
[1718120475397,0.43295979,66426.0,66425.0,0.150544]
[1718120475635,0.07215996,66425.0,66400.0,0.3339]
[1718120475874,0.2,66412.0,66401.0,0.48266979]
[1718120476093,0.07215996,66439.0,66410.0,0.3131]
[1718120476325,0.43295979,66423.0,66410.0,0.3131]
[1718120476558,0.07215996,66438.0,66429.0,0.150536]
[1718120476786,0.43295979,66439.0,66430.0,0.14431993]
[1718120477007,0.07215996,66439.0,66406.0,0.3131]
[1718120477247,0.2,66452.0,66439.0,0.150513]
[1718120477500,0.2,66444.0,66428.0,0.150536]
[1718120477717,0.07215996,66432.0,66430.0,0.150533]
[1718120477931,0.07215996,66440.0,66431.0,0.14431993]
[1718120478155,0.07215996,66447.0,66432.0,0.14431993]
[1718120478371,0.060205,66453.0,66440.0,0.3298]
[1718120478588,0.43295979,66447.0,66440.0,0.3298]
[1718120478835,0.07215996,66452.0,66441.0,0.14431993]
[1718120479054,0.01818334,66454.0,66442.0,0.00145271]
[1718120479268,0.01818334,66454.0,66449.0,0.150489]
[1718120479495,0.07215996,66461.0,66449.0,0.150489]
[1718120479496,0.07215996,66461.0,66450.0,0.14573924]
[1718120479728,0.01846542,66461.0,66459.0,0.150466]
[1718120479956,0.01846542,66461.0,66460.0,0.14573903]
[1718120480174,0.43295979,66491.0,66460.0,0.14573903]
[1718120480175,0.02756262,66467.0,66460.0,0.16873903]
[1718120480403,0.04600274,66467.0,66461.0,0.00141908]
[1718120480625,0.43295979,66491.0,66467.0,0.150449]
[1718120480833,0.03696825,66479.0,66468.0,0.16873886]
[1718120481042,0.03696825,66479.0,66469.0,0.00141891]
[1718120481043,0.009449,66479.0,66469.0,0.00141891]
[1718120481296,0.009449,66479.0,66470.0,0.14431993]
[1718120481523,0.009449,66479.0,66476.0,0.150429]
[1718120481792,0.009449,66479.0,66477.0,0.00141873]
[1718120482052,0.009449,66479.0,66478.0,0.14431993]
[1718120482260,0.02778433,66479.0,66478.0,0.16731993]
[1718120482493,0.009449,66479.0,66478.0,0.16731993]
[1718120482711,0.00937638,66479.0,66478.0,0.1405036]
[1718120482934,0.00937638,66479.0,66478.0,0.1175036]
[1718120483154,0.00937638,66479.0,66463.0,0.150457]
[1718120483366,0.07215996,66468.0,66464.0,0.14431993]
[1718120483588,0.07215996,66468.0,66447.0,0.3338]
[1718120483820,0.07215996,66453.0,66448.0,0.14431993]
[1718120484048,0.07215996,66452.0,66448.0,0.14431993]
[1718120484271,0.27215996,66452.0,66431.0,0.3338]
[1718120484495,0.27215996,66452.0,66432.0,0.14431993]
[1718120484496,0.07215996,66442.0,66432.0,0.14431993]
[1718120484740,0.2,66464.0,66445.0,0.1505]
[1718120484964,0.07215996,66452.0,66433.0,0.150526]
[1718120485240,0.07215996,66440.0,66411.0,0.150576]
[1718120485479,0.07215996,66420.0,66412.0,0.14431993]
[1718120485712,0.2,66436.0,66412.0,0.14431993]
[1718120485918,0.2,66442.0,66419.0,0.14431993]
[1718120486145,0.07215996,66452.0,66430.0,0.150532]
[1718120486146,0.43295979,66441.0,66430.0,0.150532]
[1718120486377,0.2,66447.0,66435.0,0.150522]
[1718120486610,0.2,66447.0,66420.0,0.01443199]
[1718120486611,0.09931545,66468.0,66437.0,0.3193]
[1718120486857,0.09931545,66468.0,66443.0,0.150504]
[1718120486858,0.43295979,66462.0,66443.0,0.150504]
[1718120487079,0.07215996,66453.0,66438.0,0.1634]
[1718120487297,0.2,66452.0,66438.0,0.1634]
[1718120487523,0.2,66452.0,66441.0,0.14431993]
[1718120487789,0.07215996,66451.0,66442.0,0.14431993]
[1718120488010,0.07215996,66451.0,66438.0,0.1634]
[1718120488011,0.07215996,66467.0,66448.0,0.150492]
[1718120488231,0.02225889,66477.0,66456.0,0.07215996]
[1718120488466,0.00937638,66479.0,66456.0,0.07215996]
[1718120488467,0.00937638,66479.0,66474.0,0.2957]
[1718120488695,0.00937638,66479.0,66475.0,0.0446135]
[1718120488931,0.00937638,66479.0,66476.0,0.023]
[1718120489144,0.00937638,66479.0,66477.0,0.601827]
[1718120489376,0.00937638,66479.0,66478.0,0.26731993]
[1718120490451,0.2,66503.0,66478.0,0.26731993]
[1718120490676,0.2,66505.0,66491.0,0.14431993]
[1718120490902,0.10156497,66507.0,66500.0,0.14431993]
[1718120490903,0.15596064,66504.0,66500.0,0.14431993]
[1718120491121,0.00940501,66507.0,66500.0,0.14431993]
[1718120491352,0.00940501,66507.0,66503.0,0.14431993]
[1718120491571,0.07215996,66505.0,66503.0,0.14431993]
[1718120491795,0.2,66503.0,66480.0,0.15042]
[1718120492025,0.07215996,66491.0,66485.0,0.43295979]
[1718120492249,0.2,66515.0,66500.0,0.150373]
[1718120492473,0.27215996,66521.0,66505.0,0.14431993]
[1718120492685,0.07215996,66524.0,66506.0,0.89839473]
[1718120492964,0.07215996,66524.0,66505.0,0.14431993]
[1718120492965,0.07215996,66517.0,66505.0,0.14431993]
[1718120493195,0.07215996,66506.0,66496.0,0.458]
[1718120493411,0.07215996,66506.0,66497.0,0.43295979]
[1718120493623,0.07215996,66498.0,66493.0,0.2933]
[1718120494078,0.2,66495.0,66493.0,0.14431993]
[1718120494312,0.07215996,66498.0,66479.0,0.150421]
[1718120494313,0.2,66484.0,66479.0,0.150421]
[1718120494552,0.07215996,66498.0,66472.0,0.00086]
[1718120494553,0.2,66479.0,66472.0,0.00086]
[1718120494769,0.07215996,66491.0,66474.0,0.14431993]
[1718120494979,0.07215996,66491.0,66475.0,0.05781397]
[1718120495193,0.07215996,66491.0,66481.0,0.03018]
[1718120495415,0.07215996,66484.0,66474.0,0.14431993]
[1718120495632,0.07215996,66498.0,66474.0,0.14431993]
[1718120495633,0.2,66497.0,66478.0,0.03018]
[1718120495855,0.27215996,66499.0,66490.0,0.14431993]
[1718120496086,0.07215996,66491.0,66490.0,0.14431993]
[1718120496560,0.07215996,66491.0,66462.0,1.2573]
[1718120496561,0.2,66490.0,66475.0,0.180611]
[1718120496799,0.2,66482.0,66476.0,0.14431993]
[1718120497016,0.07215996,66477.0,66476.0,0.14431993]
[1718120497271,0.07215996,66477.0,66450.0,4e-05]
[1718120497272,0.2,66473.0,66450.0,4e-05]
[1718120497517,0.22,66473.0,66452.0,0.060172]
[1718120497969,0.2,66478.0,66453.0,0.03619954]
[1718120498190,0.07215996,66473.0,66450.0,4e-05]
[1718120498426,0.27215996,66473.0,66450.0,4e-05]
[1718120498650,0.2,66476.0,66472.0,0.14517993]
[1718120498864,0.07215996,66482.0,66472.0,0.00086]
[1718120498865,0.22,66473.0,66472.0,0.00086]
[1718120499527,0.15601305,66473.0,66472.0,0.64077993]
[1718120499751,0.43295979,66503.0,66499.0,0.01]
[1718120499973,0.00752063,66502.0,66490.0,0.01]
[1718120500184,0.01113321,66514.0,66490.0,0.01]
[1718120500417,0.00752066,66503.0,66491.0,0.01]
[1718120501126,0.00752066,66503.0,66484.0,0.01]
[1718120501127,0.01,66501.0,66484.0,0.01]
[1718120501355,0.01,66501.0,66470.0,0.01]
[1718120501356,0.07215996,66486.0,66472.0,0.00086]
[1718120501577,0.160414,66484.0,66472.0,0.00086]
[1718120501795,0.01,66474.0,66472.0,0.00086]
[1718120502033,0.00752297,66473.0,66472.0,0.00086]
[1718120502280,0.07215996,66479.0,66472.0,0.00086]
[1718120502281,0.01,66474.0,66472.0,0.00086]
[1718120502518,0.00752363,66473.0,66472.0,0.00086]
[1718120502754,0.01,66481.0,66472.0,0.00086]
[1718120502985,0.01113321,66483.0,66472.0,0.14517993]
[1718120503230,0.01113321,66485.0,66473.0,0.14431993]
[1718120503451,0.01113321,66487.0,66481.0,0.01]
[1718120503681,0.01113321,66492.0,66482.0,0.14431993]
[1718120503907,0.01113321,66496.0,66490.0,0.01]
[1718120504124,0.61697337,66504.0,66491.0,0.15431993]
[1718120504125,0.01113321,66497.0,66491.0,0.15431993]
[1718120504379,0.5,66504.0,66494.0,0.01]
[1718120504638,0.5,66504.0,66503.0,0.01]
[1718120504852,0.5,66504.0,66503.0,0.183369]
[1718120505081,0.5,66504.0,66503.0,0.21613789]
[1718120505559,0.5,66504.0,66503.0,1.29501778]
[1718120505775,0.013326,66513.0,66510.0,0.180353]
[1718120506024,0.013326,66513.0,66512.0,0.680348]
[1718120506253,0.43295979,66545.0,66534.0,0.01]
[1718120506494,0.43295979,66545.0,66536.0,0.01]
[1718120506725,0.02058221,66546.0,66543.0,0.01]
[1718120506726,0.009449,66546.0,66543.0,0.01]
[1718120506966,0.009449,66546.0,66545.0,0.01]
[1718120507175,0.009449,66546.0,66544.0,0.01]
[1718120507393,0.009449,66546.0,66545.0,0.033]
[1718120507643,0.009449,66546.0,66545.0,0.14431993]
[1718120507867,0.009449,66546.0,66545.0,0.16731993]
[1718120507868,0.0154769,66546.0,66545.0,0.16731993]
[1718120508378,0.0154769,66546.0,66545.0,0.17731993]
[1718120509065,0.0154769,66546.0,66540.0,0.01]
[1718120509066,0.3003,66544.0,66540.0,0.01]
[1718120509294,0.3003,66544.0,66518.0,0.43295979]
[1718120509295,0.01,66535.0,66518.0,0.43295979]
[1718120509514,0.07215996,66526.0,66518.0,0.43295979]
[1718120509727,0.07215996,66534.0,66498.0,0.477]
[1718120509728,0.01,66531.0,66519.0,0.14431993]
[1718120509964,0.15032,66525.0,66500.0,4e-05]
[1718120510205,0.150335,66518.0,66505.0,0.14431993]
[1718120510429,0.07967841,66517.0,66505.0,0.14431993]
[1718120510643,0.07967841,66517.0,66500.0,4e-05]
[1718120510644,0.07215996,66510.0,66500.0,4e-05]
[1718120510861,0.07215996,66503.0,66500.0,4e-05]
[1718120511076,0.01,66501.0,66500.0,4e-05]
[1718120511286,0.02,66501.0,66500.0,4e-05]
[1718120511500,0.39447989,66501.0,66500.0,4e-05]
[1718120511713,0.39447989,66501.0,66472.0,0.00086]
[1718120511714,0.01,66487.0,66472.0,0.00086]
[1718120511933,0.150407,66486.0,66475.0,0.43295979]
[1718120512197,0.150407,66486.0,66472.0,0.00086]
[1718120512198,0.01,66483.0,66476.0,0.14431993]
[1718120512429,0.150394,66492.0,66472.0,0.00086]
[1718120512430,0.07215996,66480.0,66472.0,0.00086]
[1718120512681,0.158,66479.0,66472.0,0.00086]
[1718120512925,0.07215996,66487.0,66472.0,0.00086]
[1718120512926,0.01114358,66490.0,66472.0,0.00086]
[1718120513156,0.01,66478.0,66472.0,0.00086]
[1718120513387,0.150437,66473.0,66472.0,0.00086]
[1718120513616,0.07215996,66485.0,66472.0,0.14517993]
[1718120513827,0.01,66481.0,66472.0,0.00086]
[1718120514072,0.01114358,66492.0,66473.0,0.21647989]
[1718120514340,0.38245996,66500.0,66476.0,0.005]
[1718120514341,0.43295979,66496.0,66476.0,0.005]
[1718120514612,0.47584358,66497.0,66480.0,0.005]
[1718120514613,0.01114358,66497.0,66480.0,0.005]
[1718120514880,0.07215996,66526.0,66494.0,0.005]
[1718120514881,0.01114358,66509.0,66494.0,0.005]
[1718120515116,0.16036,66507.0,66484.0,0.005]
[1718120515359,0.158,66505.0,66481.0,0.56864793]
[1718120515584,0.08330354,66506.0,66490.0,0.005]
[1718120515831,0.150375,66501.0,66481.0,0.429328]
[1718120516112,0.22253896,66499.0,66482.0,0.14431993]
[1718120516346,0.01114358,66502.0,66488.0,0.005]
[1718120516628,0.01114358,66502.0,66501.0,0.005]
[1718120516847,0.37185996,66526.0,66487.0,0.07215996]
[1718120516848,0.150347,66513.0,66498.0,0.005]
[1718120517093,0.01114358,66516.0,66498.0,0.005]
[1718120517487,0.01113655,66515.0,66502.0,0.005]
[1718120517492,0.01113655,66515.0,66500.0,0.005]
[1718120517715,0.01,66515.0,66503.0,0.14431993]
[1718120518234,0.01,66515.0,66490.0,0.4998]
[1718120518235,0.07215996,66510.0,66492.0,0.005]
[1718120518239,0.150357,66509.0,66486.0,0.005]
[1718120518404,0.01,66506.0,66493.0,0.14431993]
[1718120518611,0.07798439,66505.0,66493.0,0.14431993]
[1718120518813,0.07798439,66504.0,66494.0,0.07215996]
[1718120519066,0.07798439,66503.0,66502.0,0.005]
[1718120519270,0.2997,66526.0,66502.0,0.005]
[1718120519271,0.01113655,66520.0,66508.0,0.005]
[1718120519473,0.01,66532.0,66495.0,0.023]
[1718120519474,0.07797523,66519.0,66507.0,0.005]
[1718120519749,0.07797523,66518.0,66508.0,0.14431993]
[1718120519916,0.07797523,66518.0,66503.0,0.005]
[1718120520063,0.07215996,66515.0,66500.0,0.005]
[1718120520275,0.07215996,66515.0,66473.0,0.27215996]
[1718120520276,0.07215996,66512.0,66491.0,0.005]
[1718120520476,0.01,66507.0,66493.0,0.43295979]
[1718120520679,0.07215996,66498.0,66485.0,0.005]
[1718120520883,0.08550368,66506.0,66484.0,0.005]
[1718120520884,0.07798405,66506.0,66484.0,0.005]
[1718120521107,0.07798405,66505.0,66496.0,0.005]
[1718120521320,0.36135996,66519.0,66487.0,0.07215996]
[1718120521321,0.07798405,66504.0,66501.0,0.07215996]
[1718120521532,0.01113655,66519.0,66512.0,0.005]
[1718120521737,0.01113655,66519.0,66513.0,0.14431993]
[1718120521991,0.08548864,66518.0,66504.0,0.005]
[1718120522211,0.2892,66535.0,66499.0,0.50511975]
[1718120522212,0.01113857,66533.0,66513.0,0.07715996]
[1718120522426,0.150278,66544.0,66533.0,0.005]
[1718120522635,0.150278,66544.0,66515.0,0.15034]
[1718120522636,0.43295979,66534.0,66517.0,0.005]